fUSD/lending_fUSD_20251117
["ID","MTS","AMOUNT","RATE_DAILY","PERIOD"]
[394258151,1763411438610,-278.09,0.0002169,2]
[394258152,1763411438619,-1000.0,0.00022074,2]
[394258153,1763411438629,-150.0,0.00022274,2]
[394258154,1763411438638,-403.8,0.00022597,2]
[394258155,1763411438648,-278.09,0.00022675,2]
[394258156,1763411438659,-8146.07305565,0.00022764,2]
[394258157,1763411438668,-1000.0,0.00022902,2]
[394258158,1763411438679,-187.0,0.00023,7]
[394258159,1763411438689,-278.09,0.00023661,2]
[394258160,1763411438923,-3292.0,0.00023726,2]
[394258161,1763411438937,-1000.0,0.00023729,2]
[394258162,1763411438947,-3372.85953142,0.00024,30]
[394258163,1763411438957,-13771.16,0.00024533,2]
[394258164,1763411438967,-1000.0,0.00024557,2]
[394258165,1763411438977,-278.09,0.00024647,2]
[394258166,1763411438987,-500.0,0.00024773,2]
[394258167,1763411438996,-625123.080372,0.000248,2]
[394258168,1763411439006,-7580.39,0.000248,7]
[394258169,1763411439015,-600038.022039,0.000249,2]
[394258170,1763411439024,-2300.0,0.000249,9]
[394258171,1763411439034,-151.0,0.000249,7]
[394258172,1763411439043,-151.0,0.000249,7]
[394258173,1763411439052,-1310.457228,0.000249,7]
[394258174,1763411439062,-1310.457228,0.000249,7]
[394258175,1763411439071,-151.0,0.000249,7]
[394258176,1763411439082,-356.319726,0.000249,7]
[394258177,1763411439091,-151.0,0.000249,7]
[394258178,1763411439101,-1310.457228,0.000249,7]
[394258179,1763411439112,-356.319726,0.000249,7]
[394258180,1763411439122,-151.0,0.000249,7]
[394258181,1763411439131,-356.319726,0.000249,7]
[394258182,1763411439141,-1310.457228,0.000249,7]
[394258183,1763411439150,-356.319726,0.000249,7]
[394258184,1763411439160,-151.0,0.000249,7]
[394258185,1763411439169,-151.0,0.000249,7]
[394258186,1763411439182,-151.0,0.000249,7]
[394258187,1763411439192,-199.815025,0.000249,7]
[394258188,1763411439201,-151.0,0.000249,7]
[394258189,1763411439211,-222.907282,0.000249,7]
[394258190,1763411439220,-199.815025,0.000249,7]
[394258191,1763411439230,-151.0,0.000249,7]
[394258192,1763411439239,-199.815025,0.000249,7]
[394258193,1763411439249,-151.0,0.000249,7]
[394258194,1763411439259,-199.815025,0.000249,7]
[394258195,1763411439268,-257.712691,0.000249,7]
[394258196,1763411439278,-151.0,0.000249,7]
[394258197,1763411439287,-151.0,0.000249,7]
[394258198,1763411439297,-151.0,0.000249,7]
[394258199,1763411439307,-244.871931,0.000249,7]
[394258200,1763411439317,-151.0,0.000249,7]
[394258201,1763411439326,-151.0,0.000249,7]
[394258202,1763411439335,-151.0,0.000249,7]
[394258203,1763411439345,-151.0,0.000249,7]
[394258204,1763411439355,-154.234134,0.000249,7]
[394258205,1763411439365,-151.0,0.000249,7]
[394258206,1763411439374,-151.0,0.000249,7]
[394258207,1763411439384,-151.0,0.000249,7]
[394258208,1763411439394,-151.0,0.000249,7]
[394258209,1763411439404,-151.0,0.000249,7]
[394258210,1763411439414,-151.0,0.000249,7]
[394258211,1763411439424,-435.643096,0.000249,7]
[394258212,1763411439433,-151.0,0.000249,7]
[394258213,1763411439442,-151.0,0.000249,7]
[394258214,1763411439452,-151.0,0.000249,7]
[394258215,1763411439462,-435.643096,0.000249,7]
[394258216,1763411439471,-151.0,0.000249,7]
[394258217,1763411439480,-155.292201,0.000249,7]
[394258218,1763411439490,-151.0,0.000249,7]
[394258219,1763411439499,-151.0,0.000249,7]
[394258220,1763411439508,-435.643096,0.000249,7]
[394258221,1763411439517,-151.0,0.000249,7]
[394258222,1763411439527,-151.0,0.000249,7]
[394258223,1763411439536,-435.643096,0.000249,7]
[394258224,1763411439545,-151.0,0.000249,7]
[394258225,1763411439555,-151.0,0.000249,7]
[394258226,1763411439565,-151.0,0.000249,7]
[394258227,1763411439574,-151.0,0.000249,7]
[394258228,1763411439586,-1000.0,0.0002516,7]
[394258229,1763411439596,-8146.07305565,0.00025196,2]
[394258230,1763411439606,-1000.0,0.00025321,2]
[394258231,1763411439616,-1000.0,0.00025385,2]
[394258232,1763411439626,-278.09,0.00025633,2]
[394258233,1763411439635,-740.06689584,0.00025868,2]
[394258234,1763411439645,-750.0,0.00026015,2]
[394258235,1763411439653,-278.09,0.00026619,2]
[394258236,1763411439662,-211.88,0.00026676,2]
[394258237,1763411439674,-162.39358173,0.00027,2]
[394258238,1763411439687,-278.09,0.00027605,2]
[394258239,1763411439696,-8146.07305565,0.00027628,2]
[394258240,1763411439705,-736.11,0.000277,7]
[394258241,1763411439714,-775.44,0.000277,7]
[394258242,1763411439723,-256.94,0.000277,2]
[394258243,1763411439732,-278.09,0.00028591,2]
[394258244,1763411439742,-234.97614728,0.00029448,2]
[394258245,1763411439751,-278.09,0.00029577,2]
[394258246,1763411439762,-1014.35329886,0.0003013,7]
[394258247,1763411439772,-1009.64488971,0.0003013,2]
[394258248,1763411439782,-278.09,0.00030563,2]
[394258249,1763411439791,-450.0,0.00030892,2]
[394258250,1763411439800,-603.999999,0.00031,2]
[394258251,1763411439810,-81900.0,0.000313,2]
[394258252,1763411439819,-1000.0,0.0003137,7]
[394258253,1763411439828,-500.0,0.00031473,5]
[394258254,1763411439838,-500.0,0.00031473,5]
[394258255,1763411439848,-500.46051516,0.00031473,5]
[394258256,1763411439858,-527.27825092,0.00031473,5]
[394258257,1763411439867,-500.0,0.00031473,5]
[394258258,1763411439878,-490.58197567,0.00031473,5]
[394258259,1763411439888,-305.52529526,0.00031473,5]
[394258260,1763411439897,-500.0,0.00031473,5]
[394258261,1763411439907,-262.73313407,0.0003149,2]
[394258262,1763411439916,-278.09,0.00031548,2]
[394258263,1763411439928,-500.0,0.00031773,3]
[394258264,1763411439939,-498.59718969,0.00031773,5]
[394258265,1763411439948,-500.0,0.00031773,5]
[394258266,1763411439958,-500.0,0.00031773,5]
[394258267,1763411439968,-171.82088036,0.00031773,5]
[394258268,1763411439977,-151.0,0.00031797,7]
[394258269,1763411439987,-174.81082477,0.000319,2]
[394258270,1763411439996,-256.94,0.000319,2]
[394258271,1763411440006,-445.93365105,0.00032,120]
[394258272,1763411440015,-301.99999999,0.00032,120]
[394258273,1763411440024,-1000.0,0.00032021,5]
[394258274,1763411440033,-322.5105857,0.00032021,5]
[394258275,1763411440043,-1000.0,0.00032021,5]
[394258276,1763411440052,-5518.0,0.000322,3]
[394258277,1763411440061,-593.30755412,0.00032321,3]
[394258278,1763411440070,-1000.0,0.00032321,5]
[394258279,1763411440079,-278.09,0.00032534,2]
[394258280,1763411440088,-1500.0,0.00032568,5]
[394258281,1763411440099,-1500.0,0.00032568,5]
[394258282,1763411440113,-1500.0,0.00032868,5]
[394258283,1763411440123,-604.15441672,0.00032877,7]
[394258284,1763411440132,-7580.39,0.000329,14]
[394258285,1763411440142,-445.93365105,0.00033,120]
[394258286,1763411440156,-5518.0,0.00033,5]
[394258287,1763411440166,-236.73335801,0.00033116,5]
[394258288,1763411440178,-2000.0,0.00033116,5]
[394258289,1763411440189,-211.88,0.00033165,2]
[394258290,1763411440199,-800.13979988,0.00033416,5]
[394258291,1763411440208,-278.09,0.0003352,2]
[394258292,1763411440217,-775.44,0.000336,30]
[394258293,1763411440227,-528.43500418,0.00033664,5]
[394258294,1763411440236,-200.0,0.0003372,2]
[394258295,1763411440245,-445.93365105,0.000339,120]
[394258296,1763411440255,-256.94,0.000339,2]
[394258297,1763411440264,-521.43719118,0.00034471,2]
[394258298,1763411440273,-278.09,0.00034506,2]
[394258299,1763411440283,-736.11,0.000346,14]
[394258300,1763411440292,-445.93365105,0.00035,120]
[394258301,1763411440302,-1136.26,0.00035,14]
[394258302,1763411440313,-1000.0,0.00035,21]
[394258303,1763411440323,-1019.999999,0.00035,2]
[394258304,1763411440333,-180.73656589,0.00035,120]
[394258305,1763411440342,-237.51,0.00035117,2]
[394258306,1763411440356,-1678.09914957,0.00035181,2]
[394258307,1763411440366,-2430.6,0.00035226,2]
[394258308,1763411440375,-278.09,0.00035492,2]
[394258309,1763411440385,-445.93365105,0.00036,120]
[394258310,1763411440395,-7580.39,0.00036,14]
[394258311,1763411440405,-278.09,0.00036478,2]
[394258312,1763411440415,-500.0,0.00036488,30]
[394258313,1763411440426,-500.0,0.00036488,30]
[394258314,1763411440436,-500.0,0.00036488,30]
[394258315,1763411440445,-976.49929557,0.00036488,30]
[394258316,1763411440455,-500.0,0.00036488,30]
[394258317,1763411440464,-500.0,0.00036488,30]
[394258318,1763411440473,-500.0,0.00036488,30]
[394258319,1763411440483,-500.0,0.00036488,30]
[394258320,1763411440492,-500.0,0.00036488,30]
[394258321,1763411440502,-500.0,0.00036488,30]
[394258322,1763411440511,-500.0,0.00036488,30]
[394258323,1763411440520,-500.0,0.00036488,30]
[394258324,1763411440530,-500.0,0.00036488,30]
[394258325,1763411440539,-500.0,0.00036488,30]
[394258326,1763411440549,-222.02216962,0.00036488,30]
[394258327,1763411440558,-500.0,0.00036488,30]
[394258328,1763411440571,-500.0,0.00036488,30]
[394258329,1763411440581,-500.0,0.00036488,30]
[394258330,1763411440590,-500.0,0.00036488,30]
[394258331,1763411440599,-998.29757791,0.00036488,30]
[394258332,1763411440609,-600.0,0.00036488,30]
[394258333,1763411440618,-500.0,0.00036488,30]
[394258334,1763411440627,-600.0,0.00036488,30]
[394258335,1763411440636,-500.0,0.00036488,30]
[394258336,1763411440646,-600.0,0.00036488,30]
[394258337,1763411440656,-500.0,0.00036488,30]
[394258338,1763411440666,-600.0,0.00036488,30]
[394258339,1763411440678,-800.0,0.00036488,30]
[394258340,1763411440687,-600.0,0.00036488,30]
[394258341,1763411440697,-600.0,0.00036488,30]
[394258342,1763411440706,-600.0,0.00036488,30]
[394258343,1763411440716,-600.0,0.00036488,30]
[394258344,1763411440725,-600.0,0.00036488,30]
[394258345,1763411440735,-600.0,0.00036488,30]
[394258346,1763411440744,-500.66603632,0.00036488,30]
[394258347,1763411440754,-600.0,0.00036488,30]
[394258348,1763411440767,-600.0,0.00036488,30]
[394258349,1763411440776,-475.56953106,0.00036488,30]
[394258350,1763411440786,-600.0,0.00036488,30]
[394258352,1763411440795,-600.0,0.00036488,30]
[394258354,1763411440804,-600.0,0.00036488,30]
[394258356,1763411440814,-316.93463838,0.00036488,30]
[394258358,1763411440823,-165.85835932,0.00036488,30]
[394258360,1763411440833,-500.0,0.00036488,30]
[394258362,1763411440841,-600.0,0.00036488,30]
[394258365,1763411440851,-499.4701768,0.00036488,30]
[394258368,1763411440861,-279.56808371,0.00036488,30]
[394258371,1763411440870,-500.0,0.00036488,30]
[394258374,1763411440879,-600.0,0.00036488,30]
[394258377,1763411440888,-500.0,0.00036488,30]
[394258380,1763411440898,-600.0,0.00036488,30]
[394258382,1763411440907,-600.0,0.00036488,30]
[394258384,1763411440917,-500.0,0.00036488,30]
[394258386,1763411440927,-600.0,0.00036488,30]
[394258388,1763411440937,-500.0,0.00036488,30]
[394258389,1763411440946,-600.0,0.00036488,30]
[394258390,1763411440958,-500.0,0.00036488,30]
[394258391,1763411440969,-600.0,0.00036488,30]
[394258392,1763411440979,-600.0,0.00036488,30]
[394258393,1763411440990,-500.0,0.00036488,30]
[394258394,1763411441000,-600.0,0.00036488,30]
[394258395,1763411441010,-500.0,0.00036488,30]
[394258396,1763411441023,-508.27223983,0.00036488,30]
[394258397,1763411441032,-811.54162388,0.00036488,30]
[394258398,1763411441042,-500.0,0.00036488,30]
[394258399,1763411441051,-153.20476342,0.00036488,30]
[394258400,1763411441060,-780.54409432,0.00036488,30]
[394258401,1763411441069,-219.56292131,0.00036488,30]
[394258402,1763411441079,-504.73463064,0.00036488,30]
[394258403,1763411441087,-500.0,0.00036488,30]
[394258404,1763411441097,-500.0,0.00036488,30]
[394258405,1763411441111,-982.75455222,0.00036488,30]
[394258406,1763411441123,-285.30517008,0.00036488,30]
[394258407,1763411441133,-500.0,0.000365,5]
[394258408,1763411441143,-500.0,0.000365,5]
[394258409,1763411441153,-500.0,0.000365,5]
[394258410,1763411441162,-500.0,0.000365,5]
[394258411,1763411441172,-500.0,0.000365,5]
[394258412,1763411441181,-500.0,0.000365,5]
[394258413,1763411441191,-500.0,0.000365,5]
[394258414,1763411441200,-500.0,0.000365,5]
[394258415,1763411441210,-500.0,0.000365,5]
[394258416,1763411441220,-501.16937227,0.000365,5]
[394258417,1763411441230,-500.92231122,0.000365,5]
[394258418,1763411441241,-500.0,0.000365,5]
[394258419,1763411441251,-500.0,0.000365,5]
[394258420,1763411441261,-500.0,0.000365,5]
[394258421,1763411441270,-409.34483282,0.000365,5]
[394258422,1763411441279,-500.0,0.000365,5]
[394258423,1763411441289,-200.0,0.000365,5]
[394258424,1763411441300,-499.8492798,0.000365,5]
[394258425,1763411441309,-2508.91,0.0003659,2]
[394258426,1763411441319,-174.81082475,0.00036657,2]
[394258427,1763411441328,-256.73601643,0.00036719,2]
[394258428,1763411441338,-775.44,0.000368,30]
[394258429,1763411441357,-256.94,0.000368,2]
[394258430,1763411441368,-150.0,0.00036888,7]
[394258431,1763411441378,-150.0,0.00036888,7]
[394258432,1763411441388,-150.0,0.00036888,7]
[394258433,1763411441398,-150.0,0.00036888,7]
[394258434,1763411441408,-150.0,0.00036888,7]
[394258435,1763411441417,-150.0,0.00036888,7]
[394258436,1763411441431,-150.0,0.00036888,7]
[394258437,1763411441442,-150.0,0.00036888,7]
[394258438,1763411441452,-150.0,0.00036888,7]
[394258439,1763411441461,-150.0,0.00036888,7]
[394258440,1763411441472,-150.0,0.00036888,7]
[394258441,1763411441482,-150.0,0.00036888,7]
[394258442,1763411441491,-150.0,0.00036888,7]
[394258443,1763411441502,-150.0,0.00036888,7]
[394258444,1763411441512,-1000.0,0.00037,21]
[394258445,1763411441522,-1000.0,0.00037,30]
[394258446,1763411441532,-1000.0,0.00037,30]
[394258447,1763411441543,-150.0,0.00037034,7]
[394258448,1763411441552,-363.83812644,0.00037048,5]
[394258449,1763411441562,-882.50643061,0.00037048,5]
[394258450,1763411441572,-1000.0,0.00037048,5]
[394258451,1763411441582,-1000.0,0.00037048,5]
[394258452,1763411441592,-1000.0,0.00037048,5]
[394258453,1763411441602,-504.75192177,0.00037048,5]
[394258454,1763411441611,-502.16301103,0.00037048,5]
[394258455,1763411441621,-352.79016075,0.00037048,5]
[394258456,1763411441631,-714.18785689,0.00037048,5]
[394258457,1763411441640,-1000.0,0.00037048,5]
[394258458,1763411441650,-1003.88116874,0.00037048,5]
[394258459,1763411441660,-150.0,0.00037052,7]
[394258460,1763411441669,-150.0,0.00037129,7]
[394258461,1763411441681,-150.0,0.00037129,7]
[394258462,1763411441691,-150.0,0.00037144,7]
[394258463,1763411441701,-150.0,0.00037161,7]
[394258464,1763411441712,-150.0,0.0003718,7]
[394258465,1763411441721,-400.0,0.00037185,5]
[394258466,1763411441732,-150.0,0.000372,2]
[394258467,1763411441742,-181.61613089,0.000372,120]
[394258468,1763411441751,-181.61613088,0.000372,120]
[394258469,1763411441761,-150.0,0.00037203,7]
[394258470,1763411441771,-150.0,0.00037216,7]
[394258471,1763411441781,-736.11,0.000373,14]
[394258472,1763411441791,-150.0,0.00037327,7]
[394258473,1763411441800,-150.0,0.0003737,7]
[394258474,1763411441810,-150.0,0.0003737,7]
[394258475,1763411441820,-150.0,0.0003738,7]
[394258476,1763411441830,-150.0,0.000374,7]
[394258477,1763411441839,-150.0,0.000374,7]
[394258478,1763411441848,-150.0,0.00037434,7]
[394258479,1763411441858,-278.09,0.00037464,2]
[394258480,1763411441867,-150.0,0.00037473,7]
[394258481,1763411441877,-150.0,0.00037518,7]
[394258482,1763411441888,-150.0,0.00037543,7]
[394258483,1763411441897,-1000.0,0.0003758,7]
[394258484,1763411441907,-1561.37506647,0.00037596,5]
[394258485,1763411441916,-1500.0,0.00037596,5]
[394258486,1763411441929,-1630.66541162,0.00037596,5]
[394258487,1763411441938,-1500.0,0.00037596,5]
[394258488,1763411441948,-150.0,0.00037611,7]
[394258489,1763411441958,-150.0,0.00037611,7]
[394258490,1763411441969,-150.0,0.0003762,7]
[394258491,1763411441979,-150.0,0.00037656,7]
[394258492,1763411441989,-7580.39,0.000377,14]
[394258493,1763411441998,-150.0,0.00037707,7]
[394258494,1763411442008,-150.0,0.00037707,7]
[394258495,1763411442017,-150.0,0.00037766,7]
[394258496,1763411442027,-300.0,0.00037768,2]
[394258497,1763411442036,-689.18,0.00037779,30]
[394258498,1763411442047,-150.0,0.00037834,7]
[394258499,1763411442056,-150.0,0.00037852,7]
[394258500,1763411442065,-150.0,0.00037852,7]
[394258501,1763411442075,-600.0,0.0003787,5]
[394258502,1763411442086,-150.0,0.00037871,7]
[394258503,1763411442097,-150.0,0.00037912,7]
[394258504,1763411442110,-150.0,0.00037912,7]
[394258505,1763411442120,-150.0,0.00037912,7]
[394258506,1763411442129,-150.0,0.00037912,7]
[394258507,1763411442138,-150.0,0.00037981,7]
[394258508,1763411442149,-775.44,0.00038,30]
[394258509,1763411442158,-150.0,0.00038035,7]
[394258510,1763411442167,-150.0,0.00038059,7]
[394258511,1763411442178,-150.0,0.00038093,7]
[394258512,1763411442188,-150.0,0.00038093,7]
[394258513,1763411442198,-1394.07329233,0.00038144,5]
[394258514,1763411442207,-2000.0,0.00038144,5]
[394258515,1763411442217,-306.80266438,0.00038147,2]
[394258516,1763411442227,-150.0,0.00038149,7]
[394258517,1763411442236,-150.0,0.00038168,7]
[394258518,1763411442245,-150.0,0.00038199,7]
[394258519,1763411442255,-150.0,0.00038205,7]
[394258520,1763411442265,-150.0,0.00038254,7]
[394258521,1763411442274,-150.0,0.00038254,7]
[394258522,1763411442283,-150.0,0.00038254,7]
[394258523,1763411442292,-150.0,0.00038334,7]
[394258524,1763411442302,-150.0,0.00038334,7]
[394258525,1763411442311,-150.0,0.00038351,7]
[394258526,1763411442321,-150.64830389,0.00038356,5]
[394258527,1763411442330,-150.0,0.00038363,7]
[394258528,1763411442339,-150.0,0.00038425,7]
[394258529,1763411442349,-150.0,0.00038425,7]
[394258530,1763411442358,-150.0,0.00038464,7]
[394258531,1763411442367,-150.0,0.00038498,7]
[394258532,1763411442377,-736.11,0.000385,14]
[394258533,1763411442386,-150.0,0.00038527,7]
[394258534,1763411442395,-150.0,0.00038527,7]
[394258535,1763411442405,-800.0,0.00038555,5]
[394258536,1763411442414,-161.6,0.00038557,2]
[394258537,1763411442425,-150.0,0.00038575,7]
[394258538,1763411442434,-150.0,0.00038575,7]
[394258539,1763411442444,-300.0,0.00038592,7]
[394258540,1763411442454,-150.0,0.00038644,7]
[394258541,1763411442463,-1000.0,0.00038672,2]
[394258542,1763411442473,-150.0,0.00038681,7]
[394258543,1763411442482,-150.0,0.00038691,7]
[394258544,1763411442491,-810.92938163,0.00038692,5]
[394258545,1763411442501,-5356.0,0.000387,117]
[394258546,1763411442510,-1018.109,0.00038715,52]
[394258547,1763411442520,-168.0,0.00038715,2]
[394258548,1763411442529,-1778.89,0.00038724,2]
[394258549,1763411442540,-300.0,0.00038729,7]
[394258550,1763411442549,-150.0,0.00038779,7]
[394258551,1763411442559,-150.0,0.00038791,7]
[394258552,1763411442568,-150.0,0.000388,7]
[394258553,1763411442577,-150.0,0.00038816,7]
[394258554,1763411442587,-150.0,0.00038816,7]
[394258555,1763411442596,-203.22338441,0.00038833,2]
[394258556,1763411442606,-150.0,0.00038855,7]
[394258557,1763411442616,-300.0,0.00038866,7]
[394258558,1763411442626,-8333.5451458,0.00038881,2]
[394258559,1763411442636,-7580.39,0.000389,14]
[394258560,1763411442645,-2900.0,0.000389,14]
[394258561,1763411442656,-1318.0,0.00038906,2]
[394258562,1763411442666,-1604.0,0.00038906,2]
[394258563,1763411442678,-150.0,0.00038937,7]
[394258564,1763411442688,-150.0,0.00038937,7]
[394258565,1763411442698,-150.0,0.00038937,7]
[394258566,1763411442709,-150.0,0.00038937,7]
[394258567,1763411442719,-1059.65086444,0.00038982,30]
[394258568,1763411442729,-300.0,0.00039003,7]
[394258569,1763411442739,-150.0,0.00039019,7]
[394258570,1763411442749,-531.95043136,0.00039034,120]
[394258571,1763411442758,-999.0,0.00039053,3]
[394258572,1763411442768,-150.0,0.00039058,7]
[394258573,1763411442778,-150.0,0.00039058,7]
[394258574,1763411442788,-150.0,0.00039074,7]
[394258575,1763411442797,-150.0,0.00039083,7]
[394258576,1763411442807,-150.0,0.00039095,7]
[394258577,1763411442816,-334.0,0.00039105,120]
[394258578,1763411442826,-300.0,0.00039137,2]
[394258579,1763411442835,-203.22338441,0.00039175,2]
[394258580,1763411442845,-150.0,0.00039183,7]
[394258581,1763411442854,-150.0,0.00039193,7]
[394258582,1763411442865,-775.44,0.000392,30]
[394258583,1763411442874,-275.43040318,0.000392,2]
[394258584,1763411442885,-335.0,0.00039203,2]
[394258585,1763411442894,-150.0,0.0003923,7]
[394258586,1763411442904,-1000.0,0.0003924,5]
[394258587,1763411442913,-150.0,0.00039299,7]
[394258588,1763411442925,-150.0,0.00039299,7]
[394258589,1763411442934,-203.22338441,0.00039313,2]
[394258590,1763411442944,-150.0,0.00039347,7]
[394258591,1763411442954,-150.0,0.00039347,7]
[394258592,1763411442964,-150.0,0.00039376,7]
[394258593,1763411442974,-150.0,0.0003941,7]
[394258594,1763411442984,-267.93,0.00039423,2]
[394258595,1763411442993,-150.0,0.00039449,7]
[394258596,1763411443003,-150.0,0.00039449,7]
[394258597,1763411443013,-156100.08236204,0.00039451,7]
[394258598,1763411443221,-500.0,0.000395,7]
[394258599,1763411443260,-307.75655,0.000395,3]
[394258600,1763411443270,-150.0,0.00039511,7]
[394258601,1763411443279,-150.0,0.00039523,7]
[394258602,1763411443289,-150.0,0.0003954,7]
[394258603,1763411443299,-150.0,0.0003954,7]
[394258604,1763411443308,-3223.64085,0.0003957,2]
[394258605,1763411443318,-1224.38653767,0.0003958,2]
[394258606,1763411443328,-150.0,0.0003962,7]
[394258607,1763411443338,-150.0,0.0003962,7]
[394258608,1763411443347,-150.0,0.0003962,7]
[394258609,1763411443357,-203.22338441,0.00039621,2]
[394258610,1763411443367,-211.88,0.00039654,2]
[394258611,1763411443376,-151.0,0.00039666,2]
[394258612,1763411443386,-151.0,0.00039666,2]
[394258613,1763411443395,-151.0,0.00039666,2]
[394258614,1763411443405,-151.0,0.00039666,2]
[394258615,1763411443415,-151.0,0.00039666,2]
[394258616,1763411443424,-151.0,0.00039666,2]
[394258617,1763411443433,-151.0,0.00039666,2]
[394258618,1763411443443,-151.0,0.00039666,2]
[394258619,1763411443452,-151.0,0.00039666,2]
[394258620,1763411443462,-151.0,0.00039666,2]
[394258623,1763411443472,-151.0,0.00039666,2]
[394258624,1763411443481,-151.0,0.00039666,2]
[394258626,1763411443491,-151.0,0.00039666,2]
[394258628,1763411443500,-151.0,0.00039666,2]
[394258630,1763411443510,-151.0,0.00039666,2]
[394258632,1763411443519,-151.0,0.00039666,2]
[394258633,1763411443529,-151.0,0.00039666,2]
[394258634,1763411443538,-151.0,0.00039666,2]
[394258635,1763411443549,-151.0,0.00039666,2]
[394258636,1763411443558,-151.0,0.00039666,2]
[394258637,1763411443567,-151.0,0.00039666,2]
[394258638,1763411443576,-151.0,0.00039666,2]
[394258639,1763411443586,-151.0,0.00039666,2]
[394258640,1763411443595,-170.37732466,0.00039666,2]
[394258641,1763411443604,-151.0,0.00039666,2]
[394258642,1763411443613,-151.0,0.00039666,2]
[394258643,1763411443623,-151.0,0.00039666,2]
[394258644,1763411443632,-151.0,0.00039666,2]
[394258645,1763411443642,-151.0,0.00039666,2]
[394258646,1763411443651,-151.0,0.00039666,2]
[394258647,1763411443660,-151.0,0.00039666,2]
[394258648,1763411443669,-151.0,0.00039666,2]
[394258649,1763411443680,-151.0,0.00039666,2]
[394258650,1763411443689,-151.0,0.00039666,2]
[394258651,1763411443699,-151.0,0.00039666,2]
[394258652,1763411443708,-151.0,0.00039666,2]
[394258653,1763411443718,-151.0,0.00039666,2]
[394258654,1763411443727,-151.0,0.00039666,2]
[394258655,1763411443736,-151.0,0.00039666,2]
[394258656,1763411443746,-151.0,0.00039666,2]
[394258657,1763411443755,-150.0,0.00039669,7]
[394258658,1763411443765,-150.0,0.00039675,7]
[394258659,1763411443775,-151.0,0.00039679,120]
[394258660,1763411443785,-151.0,0.00039679,120]
[394258661,1763411443795,-151.0,0.00039679,120]
[394258662,1763411443804,-151.0,0.00039679,120]
[394258663,1763411443813,-151.0,0.00039679,120]
[394258664,1763411443823,-151.0,0.00039679,30]
[394258665,1763411443832,-151.0,0.00039679,120]
[394258666,1763411443842,-151.0,0.00039679,120]
[394258667,1763411443852,-151.0,0.00039679,120]
[394258668,1763411443862,-151.0,0.00039679,120]
[394258669,1763411443871,-151.0,0.00039679,120]
[394258670,1763411443881,-151.0,0.00039679,120]
[394258671,1763411443890,-151.0,0.00039679,120]
[394258672,1763411443900,-151.0,0.00039679,120]
[394258673,1763411443910,-234.7706,0.00039679,2]
[394258674,1763411443920,-4075.8433,0.00039679,2]
[394258675,1763411443930,-25540.9046,0.00039679,2]
[394258676,1763411443939,-824.93912506,0.0003968,2]
[394258677,1763411443949,-1000.0,0.0003968,2]
[394258678,1763411443959,-3011.9463,0.0003968,2]